bitfinex-derivatives/quotes_ETHF0:USTF0_20220108
["timestamp","ask_amount","ask_price","bid_price","bid_amount"]
[1641602275414,2.269578,3211.4,3211.3,4.982405]
[1641602276118,2.269578,3211.4,3211.3,5.12316002]
[1641602276319,2.269578,3211.4,3211.3,0.14075502]
[1641602276919,3.769578,3211.4,3210.6,0.88014607]
[1641602277320,3.769578,3211.4,3210.7,1.50679169]
[1641602277519,1.5,3210.8,3210.7,6.48966269]
[1641602277724,2.681988,3210.8,3210.7,5.62772703]
[1641602278619,2.681988,3210.8,3210.7,3.40106027]
[1641602278820,1.181988,3210.8,3210.6,0.88014607]
[1641602279019,0.264788,3210.8,3210.6,0.88014607]
[1641602279421,0.264788,3210.8,3210.2,2.02034798]
[1641602280024,0.264788,3210.8,3210.5,6.99598593]
[1641602280225,0.640787,3210.7,3210.5,6.99598593]
[1641602280425,0.905575,3210.7,3210.5,2.01249393]
[1641602280627,0.905575,3210.7,3210.5,0.86566435]
[1641602281728,1.5,3210.6,3210.5,0.86566435]
[1641602281928,1.5,3210.6,3210.3,0.4704]
[1641602282127,1.5,3210.4,3210.3,0.4704]
[1641602282528,1.5,3210.4,3209.2,3.12]
[1641602282727,1.5,3210.4,3209.1,5.38956345]
[1641602282928,1.5,3210.6,3209.4,1.09985296]
[1641602283328,1.5,3210.0,3209.4,6.08450896]
[1641602283530,2.00479,3209.6,3209.4,6.08450896]
[1641602283730,2.00479,3209.6,3209.4,4.984656]
[1641602283930,2.00479,3209.6,3209.5,2.55123545]
[1641602284131,2.00479,3209.6,3209.5,1.45140943]
[1641602284132,3.50479,3209.6,3209.5,1.45140943]
[1641602284333,2.00479,3209.6,3209.5,1.45140943]
[1641602285232,2.00479,3209.6,3209.5,0.39710825]
[1641602286235,0.461577,3209.8,3209.5,0.39710825]
[1641602287336,1.5,3209.9,3209.5,0.39710825]
[1641602287536,2.00479,3210.0,3209.5,0.39710825]
[1641602287938,2.00479,3210.3,3209.5,0.41266955]
[1641602288136,2.00479,3210.3,3209.6,4.984811]
[1641602288737,3.63239465,3210.1,3209.6,4.984811]
[1641602289739,3.63239465,3210.1,3209.8,2.00479]
[1641602290138,3.63239465,3210.1,3209.9,4.984501]
[1641602290339,3.63239465,3210.1,3210.0,1.04543574]
[1641602290938,3.63239465,3210.2,3210.0,1.04543574]
[1641602291943,6.80694599,3210.3,3210.0,1.04543574]
[1641602292538,1.5,3210.1,3210.0,1.04543574]
[1641602292739,2.0837,3210.1,3210.0,1.04543574]
[1641602293740,2.0837,3210.1,3210.0,2.14649611]
[1641602293939,2.0837,3210.1,3210.0,0.88996674]
[1641602294339,2.0837,3210.1,3210.0,1.99102711]
[1641602294540,0.5837,3210.1,3210.0,1.99102711]
[1641602294740,5.94773299,3210.3,3210.0,1.99102711]
[1641602294741,5.30694599,3210.3,3210.0,1.99102711]
[1641602294940,5.30694599,3210.3,3210.1,0.17921]
[1641602295140,5.30694599,3210.3,3210.1,1.28027037]
[1641602295745,2.00479,3210.3,3210.1,1.28027037]
[1641602297245,2.00479,3210.3,3210.2,0.14092641]
[1641602297647,3.30215599,3210.5,3210.2,0.14092641]
[1641602297846,3.30215599,3210.5,3210.2,0.86172641]
[1641602298048,3.30215599,3210.5,3210.3,4.98388]
[1641602298246,3.63239465,3210.8,3210.3,4.98388]
[1641602298447,3.63239465,3210.8,3210.4,1.24198678]
[1641602298647,3.00139465,3210.8,3210.5,1.26031436]
[1641602298849,4.98571882,3211.1,3210.7,0.01555546]
[1641602299247,6.48571882,3211.1,3210.8,5.162236]
[1641602299448,6.48571882,3211.1,3210.8,5.30316241]
[1641602299650,6.48571882,3211.1,3211.0,2.00479]
[1641602300050,2.52542089,3211.1,3211.0,2.00479]
[1641602300251,1.5,3211.1,3211.0,2.14571641]
[1641602300649,1.5,3211.1,3211.0,3.23793936]
[1641602301150,1.5,3211.1,3211.0,3.936e-05]
[1641602301351,1.5,3211.1,3209.7,0.01556064]
[1641602301549,2.00479,3209.9,3209.8,5.374]
[1641602301749,4.37449,3209.9,3209.8,5.55321]
[1641602301952,4.37449,3209.9,3209.8,6.62715245]
[1641602302153,4.37449,3209.9,3209.8,1.25315245]
[1641602302550,2.87449,3209.9,3209.8,0.5774839]
[1641602302751,2.87449,3209.9,3209.8,1.22210858]
[1641602302951,3.50479,3210.2,3209.8,1.22210858]
[1641602303355,0.640787,3210.1,3209.8,1.22210858]
[1641602303552,2.0661,3210.1,3209.9,4.984423]
[1641602303752,2.0661,3210.1,3209.8,1.22210858]
[1641602303956,1.7755,3210.1,3209.8,1.22210858]
[1641602304155,1.0095,3209.9,3209.8,1.22210858]
[1641602304356,0.9719,3209.9,3209.8,1.22210858]
[1641602304556,1.538,3210.1,3209.8,1.22210858]
[1641602305358,1.538,3210.1,3209.9,4.984501]
[1641602305559,1.538,3210.1,3209.8,1.22210858]
[1641602305758,0.5661,3210.1,3209.8,1.22210858]
[1641602305958,1.95339,3210.2,3209.9,0.01555963]
[1641602306159,4.60541215,3210.3,3209.9,5.00006063]
[1641602306559,2.00479,3210.5,3209.9,5.00006063]
[1641602306759,2.00479,3210.5,3209.9,5.75876063]
[1641602306960,5.63835556,3210.5,3209.9,5.75876063]
[1641602307870,2.00479,3210.5,3210.1,2.00479]
[1641602308262,2.00479,3210.5,3210.2,4.983957]
[1641602308460,2.00479,3210.5,3210.2,6.25443391]
[1641602308863,1.94369,3210.5,3210.2,6.25443391]
[1641602310867,39.10115945,3211.2,3210.2,6.25443391]
[1641602311065,4.93553856,3211.2,3210.2,5.57742884]
[1641602311267,4.93553856,3211.2,3210.3,0.0155574]
[1641602311565,4.93553856,3211.2,3210.4,4.983259]
[1641602311766,0.905575,3211.1,3211.0,2.00479]
[1641602312167,0.905575,3211.1,3211.0,3.05210683]
[1641602312366,0.264788,3211.1,3211.0,3.05210683]
[1641602312969,0.264788,3211.1,3211.0,2.54304232]
[1641602313781,5.57632556,3211.2,3211.0,2.54304232]
[1641602313981,4.93553856,3211.2,3211.0,2.54304232]
[1641602315981,1.612687,3211.2,3211.0,2.54304232]
[1641602316679,0.9719,3211.2,3211.0,2.54304232]
[1641602316881,4.93553856,3211.2,3211.0,2.54304232]
[1641602317685,0.9719,3211.2,3211.0,2.54304232]
[1641602319187,4.93553856,3211.2,3211.0,2.20712782]
[1641602319888,4.93553856,3211.2,3211.0,1.56584741]
[1641602320890,0.264788,3211.1,3211.0,1.56584741]
[1641602321391,0.264788,3211.1,3211.0,1.70686881]
[1641602326394,0.264788,3211.1,3211.0,1.28458272]
[1641602328200,1.764788,3211.1,3210.2,0.4685]
[1641602328396,1.5,3210.8,3210.5,1.50650617]
[1641602328597,0.9719,3210.6,3210.5,1.50650617]
[1641602329799,4.47669,3210.6,3210.5,1.50650617]
[1641602330099,6.94519511,3210.6,3210.5,1.50650617]
[1641602332705,6.94519511,3210.6,3210.5,1.13866885]
[1641602335209,2.97669,3210.6,3210.5,1.13866885]
[1641602335409,2.97669,3210.6,3210.5,2.15733539]
[1641602335613,2.97669,3210.6,3210.5,1.13866885]
[1641602335814,2.97669,3210.6,3210.5,2.15733539]
[1641602336110,2.97669,3210.6,3210.5,1.13866885]
[1641602336312,6.61463783,3210.6,3210.5,1.94160186]
[1641602339016,2.97669,3210.6,3210.5,1.94160186]
[1641602340220,6.61482725,3210.6,3210.5,1.94160186]
[1641602340417,4.61003725,3210.6,3210.5,2.75130186]
[1641602340617,0.9719,3210.8,3210.5,1.73263532]
[1641602340818,0.1376,3210.9,3210.5,1.73263532]
[1641602341019,3.77340511,3211.1,3210.6,0.01555619]
[1641602341219,3.77340511,3211.1,3210.6,4.99897019]
[1641602341418,3.71840511,3211.2,3210.6,5.98855762]
[1641602341617,3.63817006,3210.7,3210.6,4.99897019]
[1641602341817,0.1376,3211.5,3210.6,4.99897019]
[1641602342017,2.14239,3211.5,3210.7,2.00479]
[1641602342217,0.1376,3211.5,3210.7,2.00479]
[1641602342517,0.1376,3211.5,3210.8,4.982716]
[1641602343520,0.0536,3211.5,3210.8,4.982716]
[1641602343717,2.00479,3211.8,3210.8,4.982716]
[1641602343918,0.05359999,3211.4,3211.1,2.00479]
[1641602344118,0.05359999,3211.4,3211.2,1.1065716]
[1641602344318,0.05359999,3211.4,3211.2,1.9154716]
[1641602344518,0.05359999,3211.4,3211.2,1.21672101]
[1641602345419,0.05359999,3211.4,3211.2,0.8150565]
[1641602346422,3.96792251,3211.5,3211.2,0.8150565]
[1641602346621,3.33792251,3211.5,3211.2,0.8150565]
[1641602347021,4.79605606,3212.0,3211.4,1.4464]
[1641602347222,4.36813937,3212.5,3211.9,1.46194932]
[1641602347430,3.11943937,3212.5,3212.4,0.01554751]
[1641602347624,2.48833937,3212.5,3212.4,0.01554751]
[1641602347823,5.29386704,3213.0,3212.4,4.99616951]
[1641602348023,6.26076828,3213.5,3212.9,2.00479]
[1641602348224,6.26076828,3213.5,3212.9,2.85769]
[1641602348425,2.00479,3213.7,3213.0,0.14079181]
[1641602348625,2.00479,3213.7,3213.0,1.02048026]
[1641602348825,2.269578,3213.7,3213.0,1.02048026]
[1641602349024,13.35,3213.6,3213.1,0.14079181]
[1641602349227,1.5,3213.3,3213.1,0.14079181]
[1641602349830,0.264788,3213.2,3213.1,0.14079181]
[1641602350025,2.269578,3213.2,3213.1,0.14079181]
[1641602350227,2.910365,3213.2,3213.1,0.14079181]
[1641602350430,17.010065,3213.2,3213.0,0.87968845]
[1641602350626,1.5,3213.1,3213.0,0.87968845]
[1641602351028,1.5,3213.1,3212.1,2.00479]
[1641602351330,1.5,3212.7,3212.1,2.00479]
[1641602351528,0.264788,3212.6,3212.2,0.14071243]
[1641602351728,0.264788,3212.6,3212.2,1.03610799]
[1641602352329,0.264788,3212.6,3212.3,0.14071243]
[1641602353230,0.640787,3212.5,3212.3,0.14071243]
[1641602353530,1.764788,3212.4,3212.3,0.14071243]
[1641602353731,1.764788,3212.4,3211.1,0.47465338]
[1641602353932,1.764788,3212.4,3211.1,0.4591]
[1641602353933,1.5,3211.5,3211.1,0.4591]
[1641602354131,2.00479,3211.2,3211.1,0.4591]
[1641602354329,15.35479,3211.2,3211.1,0.4591]
[1641602354529,17.119578,3211.2,3211.1,1.51535363]
[1641602354936,17.119578,3211.2,3211.1,1.05625363]
[1641602355134,17.760365,3211.2,3211.1,1.05625363]
[1641602355334,17.760365,3211.2,3210.2,0.4685]
[1641602355534,16.260365,3211.2,3210.2,1.34250073]
[1641602356034,2.00479,3210.6,3210.2,1.34250073]
[1641602356235,2.62409,3210.6,3210.2,1.34250073]
[1641602357335,1.5,3210.3,3210.2,0.87400073]
[1641602357534,1.5,3210.3,3209.5,2.00479]
[1641602357936,0.264788,3210.2,3209.5,2.46479]
[1641602358235,13.35,3210.0,3209.5,2.46479]
[1641602358634,13.35,3210.0,3209.6,1.05654182]
[1641602358635,0.264788,3209.9,3209.6,1.05654182]
[1641602358835,0.929288,3209.9,3209.6,1.05654182]
[1641602359236,0.640787,3209.8,3209.6,1.05654182]
[1641602360338,0.264788,3209.7,3209.6,1.05654182]
[1641602362038,2.00479,3210.1,3209.6,1.05654182]
[1641602364442,2.00479,3210.6,3209.6,1.05654182]
[1641602365645,2.00479,3210.6,3209.6,1.63744182]
[1641602366045,15.35479,3210.6,3209.6,1.63744182]
[1641602366247,1.5,3210.5,3209.6,1.63744182]
[1641602366446,2.63359,3210.6,3209.6,1.63744182]
[1641602366848,2.63359,3210.6,3209.7,0.97471259]
[1641602367048,2.63359,3210.6,3209.7,5.95898059]
[1641602367648,2.00479,3210.6,3209.8,0.97471259]
[1641602368248,2.00479,3210.6,3210.0,2.00479]
[1641602368449,2.00479,3210.6,3210.1,0.98327521]
[1641602368650,2.00479,3210.6,3210.1,5.96723221]
[1641602370751,1.37579,3210.6,3210.1,6.87233221]
[1641602370951,0.99451219,3211.1,3210.1,6.88789065]
[1641602371552,0.99451219,3211.2,3210.1,6.88789065]
[1641602372251,2.99930219,3211.2,3210.4,2.00479]
[1641602372452,0.264788,3211.1,3210.4,2.00479]
[1641602373755,2.00479,3211.2,3210.4,2.00479]
[1641602373956,2.00479,3211.2,3210.5,0.15621763]
[1641602374157,2.00479,3211.2,3210.6,1.54493807]
[1641602374356,2.00479,3211.2,3210.6,1.68559905]
[1641602374757,2.00479,3211.2,3210.7,0.14066098]
[1641602375458,13.614788,3211.1,3210.7,0.14066098]
[1641602375658,13.614788,3211.1,3210.6,1.54493807]
[1641602376059,13.574088,3211.1,3210.6,1.54493807]
[1641602376359,13.456688,3211.1,3210.6,1.54493807]
[1641602376761,13.456688,3211.1,3210.7,0.14067342]
[1641602376960,2.645577,3211.2,3210.6,1.54493807]
[1641602377164,2.00479,3211.2,3210.6,2.36363807]
[1641602377664,2.00479,3211.2,3210.7,0.14065843]
[1641602378365,2.645577,3211.2,3210.7,0.14065843]
[1641602380569,2.826965,3211.2,3210.7,0.14065843]
[1641602381773,2.99910786,3211.5,3210.7,0.14065843]
[1641602382172,33.5662,3211.6,3211.3,2.00479]
[1641602382473,3.95763282,3211.7,3211.3,2.80669]
[1641602382871,3.95763282,3212.0,3211.3,2.80669]
[1641602383071,0.99425584,3211.7,3211.4,0.14065843]
[1641602383873,3.95763282,3212.0,3211.4,0.14065843]
[1641602384071,3.95763282,3212.1,3211.5,0.84870414]
[1641602384270,3.95763282,3212.1,3211.9,2.00479]
[1641602384471,3.95763282,3212.1,3211.9,33.88924848]
[1641602385076,3.95763282,3212.1,3212.0,1.11428071]
[1641602385274,1.25898041,3212.3,3212.0,1.11428071]
[1641602385875,1.25898041,3212.3,3212.1,0.14065843]
[1641602386076,0.640787,3212.2,3212.1,0.14065843]
[1641602386689,0.640787,3212.2,3212.0,0.97362228]
[1641602388483,1.5,3212.1,3211.3,2.00479]
[1641602388687,0.905575,3212.2,3211.3,2.00479]
[1641602388688,1.5,3211.9,3211.3,2.00479]
[1641602388981,13.614788,3211.8,3211.3,2.00479]
[1641602389581,13.614788,3211.8,3211.4,0.80190454]
[1641602390185,1.5,3211.6,3211.4,0.80190454]
[1641602390384,0.264788,3211.5,3211.4,0.80190454]
[1641602390583,0.905575,3211.5,3211.4,0.80190454]
[1641602391383,0.905575,3211.5,3211.4,0.33870974]
[1641602394386,2.645577,3211.7,3211.4,0.33870974]
[1641602394786,2.645577,3211.7,3211.5,0.14060752]
[1641602394986,3.95763282,3212.3,3211.5,0.14060752]
[1641602395188,0.264788,3212.2,3211.5,0.14060752]
[1641602396789,0.640787,3212.1,3211.5,0.14060752]
[1641602397693,0.264788,3212.2,3211.5,0.14060752]
[1641602397893,3.95763282,3212.5,3211.8,1.49999999]
[1641602398092,3.32753282,3212.5,3212.1,0.01554881]
[1641602398293,3.32753282,3212.6,3212.4,2.00479]
[1641602398493,3.32753282,3212.6,3212.4,2.75549]
[1641602398892,3.32753282,3212.6,3212.5,1.48203746]
[1641602399291,0.99419241,3212.8,3212.5,1.48203746]
[1641602399793,0.03,3213.1,3212.5,1.48203746]
[1641602399994,0.03,3213.1,3212.6,0.14060752]
[1641602400594,2.99898241,3213.3,3212.6,0.14060752]
[1641602401904,2.00479,3213.3,3212.6,0.14060752]
[1641602402801,2.00479,3213.3,3212.5,1.3569767]
[1641602403603,2.00479,3213.3,3212.5,1.1214815]
[1641602403807,1.67089,3213.3,3212.5,1.1214815]
[1641602404008,5.62368488,3213.3,3212.5,1.1214815]
[1641602405706,1.67089,3213.3,3212.5,1.1214815]
[1641602407610,1.67089,3213.3,3212.6,0.14043499]
[1641602409111,1.67089,3213.3,3212.7,4.979847]
[1641602409914,5.04398488,3213.7,3212.7,4.979847]
[1641602410114,2.70669488,3213.7,3212.9,0.0155449]
[1641602410315,2.24759488,3213.7,3213.4,2.00479]
[1641602410511,1.63859488,3213.7,3213.4,2.75029]
[1641602410711,1.63859488,3213.7,3213.5,0.14040087]
[1641602411112,1.63859488,3213.7,3213.6,0.97982216]
[1641602411314,0.99419241,3213.8,3213.6,0.97982216]
[1641602411513,0.99419241,3213.8,3213.6,1.12022303]
[1641602411914,2.00479,3214.2,3213.7,0.14040087]
[1641602412111,2.00479,3214.2,3213.7,5.11908587]
[1641602412512,2.00479,3214.2,3213.8,0.14040087]
[1641602412715,2.00479,3214.2,3213.7,4.978685]
[1641602412914,2.00479,3214.2,3213.6,0.97982216]
[1641602413112,1.41579,3214.2,3213.6,0.97982216]
[1641602413513,1.41579,3214.2,3213.7,4.978375]
[1641602415013,1.41579,3214.2,3213.7,5.577875]
[1641602416014,2.00479,3214.5,3213.7,5.577875]
[1641602416216,2.00479,3214.5,3213.7,4.978375]
[1641602416415,2.00479,3214.5,3213.9,2.00479]
[1641602422323,14.255575,3214.4,3213.9,2.00479]
[1641602422525,15.106175,3214.4,3213.9,2.00479]
[1641602422923,1.756175,3214.4,3213.9,2.00479]
[1641602423925,3.256175,3214.4,3213.9,2.00479]
[1641602424127,13.35,3214.3,3213.9,2.00479]
[1641602424327,0.264788,3214.2,3213.9,2.00479]
[1641602426529,13.35,3213.9,3212.9,2.00479]
[1641602426731,1.5,3213.5,3212.5,0.46]
[1641602426932,1.5,3213.3,3212.5,0.46]
[1641602427133,0.905575,3213.2,3212.5,0.46]
[1641602427530,0.905575,3213.2,3212.6,0.98081216]
[1641602427531,1.5,3213.0,3212.6,0.98081216]
[1641602427730,0.264788,3212.9,3212.6,0.98081216]
[1641602428533,13.35,3212.8,3212.6,0.98081216]
[1641602428732,0.264788,3212.7,3212.6,0.98081216]
[1641602430134,2.00479,3212.9,3212.6,0.98081216]
[1641602431138,33.6504,3213.8,3212.8,0.01554535]
[1641602431335,45.1989,3214.0,3212.8,34.76639967]
[1641602431535,13.35,3214.0,3212.8,34.76639967]
[1641602431736,13.35,3214.0,3212.8,35.40469967]
[1641602431935,1.5,3213.8,3212.8,35.40469967]
[1641602432436,3.50479,3213.8,3213.1,2.00479]
[1641602432635,14.255575,3213.7,3213.2,1.41343557]
[1641602435139,0.264788,3213.7,3213.2,1.41343557]
[1641602435341,14.255575,3213.7,3213.2,1.41343557]
[1641602438246,1.5,3213.6,3213.2,1.41343557]
[1641602438446,2.00479,3213.3,3213.2,1.41343557]
[1641602438648,15.35479,3213.3,3213.2,1.41343557]
[1641602439046,15.619578,3213.3,3213.2,1.41343557]
[1641602439646,2.269578,3213.3,3213.2,1.41343557]
[1641602440747,2.269578,3213.3,3213.2,1.2251463]
[1641602445061,15.619578,3213.3,3213.2,1.2251463]
[1641602445258,16.455978,3213.3,3213.2,1.2251463]
[1641602447160,16.455978,3213.3,3212.8,31.57460926]
[1641602448361,15.619578,3213.3,3212.8,31.57460926]
[1641602448562,2.269578,3213.3,3212.9,0.14049855]
[1641602448965,2.269578,3213.3,3213.2,0.88690404]
[1641602449364,2.269578,3213.3,3213.2,1.02740259]
[1641602451068,15.619578,3213.3,3213.2,1.02740259]
[1641602451270,17.119578,3213.3,3213.2,1.02740259]
[1641602452972,17.119578,3213.3,3212.5,0.46]
[1641602453171,1.5,3213.0,3212.6,0.81814813]
[1641602453976,0.905575,3212.9,3212.6,0.81814813]
[1641602455778,1.5,3212.7,3212.6,0.81814813]
[1641602455978,1.764788,3212.7,3211.3,0.01555275]
[1641602456178,1.5,3212.5,3211.6,3.5919]
[1641602456380,13.35,3212.4,3211.7,1.13814244]
[1641602456581,2.00479,3212.2,3211.7,1.13814244]
[1641602456779,13.990787,3212.1,3211.7,2.08460512]
[1641602456979,0.264788,3212.0,3211.7,0.94646268]
[1641602460186,1.764788,3212.0,3211.7,0.94646268]
[1641602460586,0.264788,3212.0,3211.7,0.94646268]
[1641602460787,1.764788,3212.0,3211.7,0.94646268]
[1641602461590,13.35,3211.7,3209.9,0.48755943]
[1641602461791,1.5,3210.7,3209.9,0.472]
[1641602461992,14.255575,3210.6,3209.9,0.472]
[1641602462189,1.5,3210.4,3209.9,0.472]
[1641602462588,2.00479,3210.2,3209.4,29.75252404]
[1641602462791,13.35,3210.1,3209.4,30.22692404]
[1641602463089,0.264788,3210.0,3209.4,30.22692404]
[1641602463289,1.109988,3210.0,3209.4,30.22692404]
[1641602463490,1.109988,3210.0,3209.4,0.4744]
[1641602463688,1.109988,3210.0,3209.5,1.21867262]
[1641602464192,13.35,3210.6,3209.5,1.21867262]
[1641602464890,15.35479,3210.6,3209.8,2.00479]
[1641602465089,0.905575,3210.5,3209.8,2.00479]
[1641602466289,1.828975,3210.5,3209.8,2.00479]
[1641602466892,1.188188,3210.5,3209.8,2.00479]
[1641602467793,0.640787,3210.4,3209.8,2.00479]
[1641602467991,0.264788,3210.3,3209.8,2.00479]
[1641602468390,0.264788,3210.3,3209.5,1.21867262]
[1641602468591,13.614788,3210.3,3209.5,1.21867262]
[1641602468792,15.35479,3210.0,3209.5,1.21867262]
[1641602468993,0.264788,3209.9,3209.5,1.21867262]
[1641602472996,1.5,3209.8,3209.5,1.21867262]
[1641602473197,14.255575,3209.7,3209.2,0.031]
[1641602473397,1.5,3209.5,3209.2,0.031]
[1641602473797,0.264788,3209.4,3209.2,0.031]
[1641602474797,17.35958,3209.3,3209.2,0.031]
[1641602474997,17.35958,3209.3,3209.2,1.06407953]
[1641602475898,18.85958,3209.3,3209.2,1.06407953]
[1641602476701,17.35958,3209.3,3209.2,1.06407953]
[1641602478607,0.264788,3209.2,3208.2,0.031]
[1641602478803,13.35,3208.4,3208.2,0.031]
[1641602479004,0.640787,3208.3,3208.2,0.031]
[1641602479204,0.905575,3208.3,3208.2,0.031]
[1641602479604,0.905575,3208.3,3208.2,0.89669644]
[1641602480906,16.260365,3208.3,3208.2,0.89669644]
[1641602482007,17.760365,3208.3,3208.2,0.89669644]
[1641602483508,53.43926656,3208.3,3208.2,0.89669644]
[1641602484409,56.5389502,3208.3,3208.2,0.89669644]
[1641602485311,56.5389502,3208.3,3207.3,0.031]
[1641602485312,63.43926655,3208.3,3207.3,0.031]
[1641602485510,1.5,3207.7,3207.3,0.031]
[1641602485809,13.35,3207.4,3207.3,0.031]
[1641602486214,13.35,3207.4,3207.3,1.56255426]
[1641602486414,15.114788,3207.4,3207.3,1.56255426]
[1641602486914,19.124368,3207.4,3207.3,1.56255426]
[1641602488818,17.624368,3207.4,3207.3,1.56255426]
[1641602489418,4.00958,3207.4,3207.3,1.56255426]
[1641602491320,18.000367,3207.4,3207.3,1.56255426]
[1641602491518,18.745167,3207.4,3207.3,1.56255426]
[1641602491718,19.009955,3207.4,3207.3,1.56255426]
[1641602492121,0.8189694,3212.9,3207.3,1.56255426]
[1641602492122,0.86806309,3216.2,3207.3,3.06255425]
[1641602492320,3.27039866,3211.0,3208.4,1.49999999]
[1641602492522,1.5,3209.9,3208.4,0.8556]
[1641602492725,3.27039866,3210.8,3208.4,0.8556]
[1641602492924,2.00479,3210.1,3209.4,2.00479]
[1641602493122,0.264788,3210.0,3209.4,2.269578]
[1641602493321,0.640787,3209.9,3209.4,2.269578]
[1641602493522,0.640787,3209.9,3209.5,1.16823085]
[1641602493924,0.264788,3209.8,3209.5,1.16823085]
[1641602494424,13.614788,3209.8,3209.5,1.16823085]
[1641602494624,17.948342,3209.6,3209.5,1.16823085]
[1641602494827,15.868088,3209.6,3205.4,46.0449696]
[1641602495024,13.35,3208.8,3208.1,2.00479]
[1641602495227,13.9764,3208.8,3208.2,0.264788]
[1641602495427,0.905575,3208.7,3208.2,0.264788]
[1641602495624,0.905575,3208.7,3208.1,2.00479]
[1641602496024,13.35,3208.6,3208.2,0.264788]
[1641602496424,13.35,3208.6,3208.2,1.38369914]
[1641602497926,13.614788,3208.6,3208.2,1.38369914]
[1641602498426,14.537388,3208.6,3208.2,1.38369914]
[1641602499029,0.9226,3208.6,3208.2,1.38369914]
[1641602499227,13.35,3208.8,3208.2,1.38369914]
[1641602499425,13.35,3208.8,3208.2,2.14489914]
[1641602499626,2.00479,3208.9,3208.2,2.14489914]
[1641602499826,3.09870866,3209.3,3208.2,2.14489914]
[1641602500327,15.35479,3209.2,3208.2,2.14489914]
[1641602500928,15.35479,3209.2,3208.7,2.00479]
[1641602501130,0.640787,3209.1,3208.7,3.71565487]
[1641602502228,0.905575,3209.1,3208.7,3.45086687]
[1641602505333,0.640787,3209.1,3208.7,3.34408939]
[1641602505531,2.00479,3209.2,3208.8,0.640787]
[1641602507536,13.35,3209.1,3208.8,0.640787]
[1641602507736,14.1019,3209.1,3208.8,0.640787]
[1641602508637,0.7519,3209.1,3208.8,0.640787]
[1641602509037,1.56489,3209.2,3208.8,0.640787]
[1641602511142,14.91489,3209.2,3208.8,0.640787]
[1641602511543,14.91489,3209.2,3208.7,3.34408939]
[1641602511743,14.91489,3209.2,3208.7,1.44607687]
[1641602511744,15.60709,3209.2,3208.7,1.44607687]
[1641602511944,0.264788,3209.1,3208.7,1.44607687]
[1641602512144,0.264788,3209.1,3208.7,1.29791977]
[1641602513044,2.00479,3208.8,3208.7,1.29791977]
[1641602513644,2.00479,3208.8,3208.7,2.27584791]
[1641602514649,15.35479,3208.8,3208.7,0.97792814]
[1641602515451,15.35479,3208.8,3208.7,0.48578565]
[1641602515752,2.00479,3208.8,3208.7,0.48578565]
[1641602518455,2.00479,3208.8,3208.7,0.62629425]
[1641602519252,2.00479,3208.8,3208.7,0.4397001]
[1641602519453,2.61754192,3208.9,3208.7,0.4397001]
[1641602519653,3.62012184,3209.4,3208.8,1.49999999]
[1641602519855,1.34788632,3209.7,3209.3,1.49999999]
[1641602520055,1.34788632,3209.7,3209.4,0.640787]
[1641602520255,3.94431964,3209.6,3209.4,0.30059342]
[1641602520755,1.0162332,3209.7,3209.4,0.44110202]
[1641602520954,4.45233692,3210.0,3209.5,1.64050859]
[1641602521155,4.45233692,3210.0,3209.9,4.00958]
[1641602521354,18.29704102,3210.5,3209.9,5.50645339]
[1641602521557,13.35,3210.5,3209.9,5.50645339]
[1641602521755,13.614788,3210.5,3210.0,0.1405086]
[1641602522354,0.264788,3210.5,3210.0,0.1405086]
[1641602522554,13.35,3210.6,3210.1,0.300594]
[1641602522957,13.35,3210.6,3210.2,0.1405086]
[1641602525357,4.94977299,3210.8,3210.2,1.64050859]
[1641602525559,4.94977299,3210.8,3210.2,0.1405086]
[1641602525758,4.94977299,3210.8,3210.3,1.13622512]
[1641602526158,4.94977299,3210.8,3210.3,1.49999999]
[1641602526359,4.94977299,3210.8,3210.4,2.23631078]
[1641602526659,4.94977299,3210.8,3210.5,1.13622512]
[1641602527160,13.6814989,3211.0,3210.7,2.00479]
[1641602528967,0.03,3211.2,3210.7,0.42287155]
[1641602529167,0.03,3211.2,3210.8,1.49999999]
[1641602529369,0.03,3211.2,3210.8,2.23089999]
[1641602529768,3.95510911,3211.3,3210.8,2.23089999]
[1641602530067,3.39470911,3211.3,3210.9,1.09092199]
[1641602530268,1.32616278,3211.4,3210.9,1.09092199]
[1641602530269,0.31146388,3211.4,3210.9,1.09092199]
[1641602530470,4.92602653,3218.0,3211.2,1.49999999]
[1641602530471,3.82233692,3212.1,3211.2,1.49999999]
[1641602530768,3.95626186,3211.6,3211.0,6.48271599]
[1641602531170,3.82233692,3212.1,3211.5,2.00479]
[1641602531970,3.82233692,3212.1,3211.6,1.48416264]
[1641602532974,0.03,3212.2,3211.6,1.48416264]
[1641602534574,0.264788,3212.1,3211.6,1.48416264]
[1641602534774,0.905575,3212.1,3211.6,0.24544586]
[1641602534972,0.905575,3212.1,3211.5,2.00479]
[1641602535173,2.00479,3211.9,3211.5,2.00479]
[1641602535372,13.614788,3211.8,3211.5,2.00479]
[1641602535973,2.00479,3211.9,3211.5,2.00479]
[1641602536774,2.00479,3211.9,3211.6,1.43911842]
[1641602537877,2.00479,3211.9,3210.7,1.83159573]
[1641602538080,2.00479,3211.9,3210.8,0.01555515]
[1641602538478,2.00479,3211.9,3210.9,4.982328]
[1641602538777,3.61814641,3211.8,3210.9,4.982328]
[1641602538979,3.61814641,3211.8,3211.0,0.80569899]
[1641602539377,3.61814641,3211.8,3211.1,4.98225]
[1641602539977,7.62772641,3211.9,3211.1,4.98225]
[1641602540178,5.62293641,3211.9,3211.3,1.49999999]
[1641602540479,3.61814641,3211.9,3211.8,1.49999999]
[1641602540680,0.03,3212.2,3211.8,2.13919999]
[1641602541280,3.64676972,3212.2,3211.8,4.14398999]
[1641602541482,3.64676972,3212.2,3211.9,1.02720919]
[1641602542379,0.03,3212.2,3211.9,1.02720919]
[1641602542879,0.03,3212.2,3211.9,0.78995959]
[1641602543080,0.294788,3212.2,3211.9,0.78995959]
[1641602543280,2.00479,3212.0,3211.9,0.78995959]
[1641602546983,2.00479,3212.0,3211.9,0.71096364]
[1641602547985,2.910365,3212.0,3211.9,0.71096364]
[1641602548685,16.260365,3212.0,3211.9,0.71096364]